bitfinex/quotes_SOLUSD_20220306
["timestamp","ask_amount","ask_price","bid_price","bid_amount"]
[1646563937527,52.38907806,86.547,86.471,8.61513526]
[1646563937930,52.38907806,86.547,86.472,2.83613526]
[1646563938128,52.38907806,86.547,86.474,58.99132852]
[1646563938731,24.6593,86.559,86.474,58.99132852]
[1646563938930,24.6593,86.559,86.48,17.344]
[1646563939131,24.6593,86.559,86.49,13.72]
[1646563939331,3.13305233,86.573,86.49,13.72]
[1646563939532,3.13305233,86.59,86.492,0.55902622]
[1646563939829,23.2446,86.593,86.491,8.61313526]
[1646563939830,62.38729003,86.579,86.494,61.96373666]
[1646563940230,62.38729003,86.579,86.495,2.83613526]
[1646563940431,62.38729003,86.579,86.511,61.41227599]
[1646563940831,62.38729003,86.579,86.511,64.24841125]
[1646563941036,5.777,86.592,86.511,64.24841125]
[1646563941232,121.077,86.592,86.511,70.15841125]
[1646563941431,23.2446,86.593,86.511,70.15841125]
[1646563941833,5.776,86.606,86.52,17.3355]
[1646563942034,62.56583444,86.616,86.53,13.72]
[1646563942232,62.56583444,86.616,86.531,50.16192229]
[1646563942433,62.56583444,86.616,86.531,49.55660761]
[1646563942632,62.56583444,86.616,86.532,3.44144994]
[1646563942834,23.2537,86.626,86.55,17.3273]
[1646563943034,3.13305233,86.641,86.56,13.72]
[1646563943238,3.13305233,86.641,86.561,0.62563682]
[1646563943433,24.07,86.648,86.56,13.72]
[1646563943833,54.54094262,86.647,86.561,56.13374249]
[1646563944032,48.22278642,86.647,86.561,56.13374249]
[1646563944233,48.22278642,86.647,86.57,17.3261]
[1646563944432,48.22278642,86.647,86.57,23.3361]
[1646563945432,48.22278642,86.647,86.57,37.0561]
[1646563946035,24.07,86.648,86.57,37.0561]
[1646563946237,23.2537,86.663,86.571,2.83613526]
[1646563946433,23.2537,86.663,86.59,17.3209]
[1646563946733,23.2537,86.663,86.59,31.0409]
[1646563947134,64.6465083,86.649,86.591,54.90340411]
[1646563947334,5.772,86.68,86.6,17.3194]
[1646563947535,22.5513,86.683,86.6,31.0394]
[1646563948336,46.09625083,86.66,86.6,31.0394]
[1646563948538,46.09625083,86.66,86.6,13.72]
[1646563949237,46.09625083,86.66,86.58,13.72]
[1646563949440,117.91691862,86.649,86.57,13.72]
[1646563950039,123.68991862,86.649,86.57,13.72]
[1646563950240,123.68991862,86.649,86.571,48.62159398]
[1646563951444,2.61691862,86.648,86.571,48.62159398]
[1646563951742,165.39644309,86.647,86.571,48.62159398]
[1646563951940,115.3,86.646,86.571,48.62159398]
[1646563952341,50.09644309,86.647,86.571,48.62159398]
[1646563953041,115.3,86.646,86.571,48.62159398]
[1646563954771,50.09644309,86.647,86.572,2.83613526]
[1646563955968,50.0,86.65,86.58,17.3239]
[1646563956168,50.0,86.65,86.59,13.72]
[1646563956769,50.0,86.65,86.591,2.83613526]
[1646563956968,50.0,86.65,86.592,54.39758243]
[1646563957168,11.98067974,86.65,86.592,81.41661989]
[1646563957370,5.772,86.703,86.6,188.8237]
[1646563957570,23.5534,86.704,86.61,185.23]
[1646563957769,5.769,86.739,86.611,0.72777468]
[1646563957970,24.0653,86.738,86.613,0.87614399]
[1646563958168,49.06460346,86.735,86.614,54.11354142]
[1646563958368,121.068,86.734,86.614,56.94967668]
[1646563958568,121.068,86.734,86.615,3.71227925]
[1646563958772,5.768,86.734,86.618,184.91]
[1646563958972,49.06460346,86.735,86.618,184.91]
[1646563958973,49.06460346,86.735,86.631,55.27372642]
[1646563959172,49.06460346,86.735,86.631,64.63372642]
[1646563959371,115.3,86.734,86.631,64.63372642]
[1646563959572,115.3,86.734,86.632,29.85517272]
[1646563960072,115.3,86.732,86.633,2.83613526]
[1646563960275,115.3,86.73,86.64,17.3113]
[1646563960473,115.3,86.73,86.65,13.72]
[1646563960676,115.3,86.73,86.651,53.17246349]
[1646563961172,5.768,86.734,86.651,53.17246349]
[1646563961376,49.06460346,86.735,86.652,5.767]
[1646563961974,49.06460346,86.735,86.652,8.60313526]
[1646563962173,115.3,86.734,86.66,17.3073]
[1646563962375,115.3,86.734,86.67,13.72]
[1646563962574,115.3,86.734,86.667,55.33866036]
[1646563962575,115.3,86.732,86.667,55.33866036]
[1646563962874,115.3,86.732,86.66,13.72]
[1646563963474,115.3,86.731,86.66,13.72]
[1646563963680,49.06460346,86.735,86.66,13.72]
[1646563963681,5.767,86.734,86.66,13.72]
[1646563963876,49.06460346,86.735,86.661,58.37109053]
[1646563964278,49.06460346,86.735,86.662,8.60313526]
[1646563964977,115.3,86.734,86.662,2.83613526]
[1646563965176,130.27139731,86.734,86.66,13.72]
[1646563965377,115.3,86.732,86.66,13.72]
[1646563965680,118.43305233,86.73,86.64,13.72]
[1646563965979,115.3,86.728,86.64,13.72]
[1646563966179,115.3,86.726,86.64,13.72]
[1646563966477,115.3,86.724,86.641,5.768]
[1646563966877,3.13305233,86.728,86.641,5.768]
[1646563966878,115.3,86.72,86.641,5.768]
[1646563967078,115.3,86.72,86.64,13.72]
[1646563967280,115.3,86.718,86.64,13.72]
[1646563967480,115.3,86.716,86.64,13.72]
[1646563967680,115.3,86.714,86.64,13.72]
[1646563968080,115.3,86.712,86.64,13.72]
[1646563968281,115.3,86.712,86.641,5.768]
[1646563968482,115.3,86.71,86.641,5.768]
[1646563968682,6.31236288,86.709,86.633,5.768]
[1646563968881,3.13305233,86.702,86.618,2.83613526]
[1646563969082,3.13305233,86.698,86.619,5.769]
[1646563969285,3.13305233,86.69,86.604,5.769]
[1646563969485,115.3,86.688,86.605,52.21656626]
[1646563969884,115.3,86.686,86.605,52.21656626]
[1646563970083,115.3,86.686,86.606,2.83613526]
[1646563970284,115.3,86.684,86.606,2.83613526]
[1646563970483,6.31236288,86.683,86.606,2.83613526]
[1646563970683,115.3,86.682,86.606,2.83613526]
[1646563970884,6.31236288,86.681,86.606,2.83613526]
[1646563971494,9.44541521,86.688,86.61,31.0378]
[1646563971688,9.44541521,86.688,86.61,13.72]
[1646563971890,9.44541521,86.688,86.611,5.769]
[1646563972389,118.43305233,86.687,86.611,5.769]
[1646563972588,6.31236288,86.686,86.611,5.769]
[1646563972814,115.3,86.685,86.611,5.769]
[1646563972990,115.3,86.683,86.611,5.769]
[1646563973187,115.3,86.681,86.611,5.769]
[1646563973388,115.3,86.679,86.611,5.769]
[1646563973590,115.3,86.677,86.611,5.769]
[1646563973789,115.3,86.675,86.611,5.769]
[1646563973988,6.31236288,86.674,86.611,5.769]
[1646563974188,121.61236288,86.674,86.611,5.769]
[1646563974591,115.3,86.672,86.606,5.769]
[1646563974889,3.13305233,86.664,86.595,5.771]
[1646563975089,3.13305233,86.664,86.585,5.771]
[1646563975289,3.13305233,86.663,86.584,5.772]
[1646563975494,3.13305233,86.658,86.584,5.772]
[1646563975691,115.3,86.656,86.584,5.772]
[1646563975890,115.3,86.654,86.584,5.772]
[1646563976089,115.3,86.652,86.584,5.772]
[1646563976292,3.13305233,86.647,86.583,17.1042]
[1646563976690,9.44541521,86.646,86.583,17.1042]
[1646563976893,115.3,86.645,86.584,5.772]
[1646563977091,162.3948267,86.644,86.585,50.50093394]
[1646563977292,47.0948267,86.644,86.586,5.772]
[1646563978091,3.13305233,86.654,86.585,50.50093394]
[1646563978493,3.13305233,86.656,86.587,2.83613526]
[1646563978692,3.13305233,86.657,86.587,2.83613526]
[1646563979091,51.49422011,86.656,86.587,2.83613526]
[1646563979292,6.31563332,86.655,86.588,5.772]
[1646563979496,6.31563332,86.655,86.59,17.3216]
[1646563979993,6.31563332,86.655,86.591,5.772]
[1646563985398,6.31563332,86.655,86.59,33.87773526]
[1646563985802,115.3,86.654,86.59,13.72]
[1646563986001,3.13305233,86.652,86.59,13.72]
[1646563986605,6.31563332,86.651,86.59,13.72]
[1646563986804,3.13305233,86.652,86.59,13.72]
[1646563987002,6.31563332,86.65,86.59,13.72]
[1646563987206,6.31563332,86.651,86.59,13.72]
[1646563987406,3.13305233,86.652,86.59,13.72]
[1646563987603,3.13305233,86.653,86.59,13.72]
[1646563988225,3.13305233,86.653,86.59,31.0418]
[1646563988624,9.44868565,86.655,86.59,31.0418]
[1646563989024,6.31563332,86.655,86.59,31.0418]
[1646563989625,3.13305233,86.654,86.59,31.0418]
[1646563990526,6.31563332,86.655,86.59,31.0418]
[1646563991329,3.13305233,86.654,86.59,31.0418]
[1646563992333,6.31563332,86.655,86.59,31.0418]
[1646563993732,9.44868565,86.655,86.59,31.0418]
[1646563994733,6.31563332,86.655,86.59,31.0418]
[1646563995432,3.13305233,86.654,86.59,31.0418]
[1646563997132,3.13305233,86.653,86.59,31.0418]
[1646563997334,3.13305233,86.65,86.59,31.0418]
[1646563997934,3.13305233,86.649,86.59,31.0418]
[1646563998336,3.13305233,86.65,86.59,31.0418]
[1646563998537,6.31563332,86.648,86.59,31.0418]
[1646563998735,3.13305233,86.649,86.59,31.0418]
[1646563999235,3.13305233,86.65,86.59,31.0418]
[1646563999437,3.13305233,86.648,86.59,13.72]
[1646563999636,3.13305233,86.644,86.59,13.72]
[1646563999836,3.13305233,86.639,86.584,5.772]
[1646564001138,3.13305233,86.638,86.584,5.772]
[1646564001337,3.13305233,86.637,86.584,5.772]
[1646564001939,3.13305233,86.638,86.584,5.772]
[1646564002140,6.31563332,86.636,86.584,5.772]
[1646564002338,3.13305233,86.639,86.584,5.772]
[1646564002739,3.13305233,86.638,86.584,5.772]
[1646564003040,6.31563332,86.642,86.591,24.23268102]
[1646564003239,64.11240215,86.643,86.591,24.23268102]
[1646564003439,6.31571669,86.641,86.591,24.23268102]
[1646564003638,64.11240215,86.643,86.591,24.23268102]
[1646564004841,3.13305233,86.651,86.591,24.23268102]
[1646564005049,3.13305233,86.651,86.6,17.3193]
[1646564005240,3.13305233,86.667,86.61,13.72]
[1646564005441,3.13305233,86.672,86.611,0.716646]
[1646564005642,3.13305233,86.673,86.611,25.21412203]
[1646564005844,6.31521381,86.674,86.611,25.21412203]
[1646564005845,6.31521381,86.674,86.611,28.05025729]
[1646564006044,56.74685113,86.672,86.612,65.02431844]
[1646564006342,56.74685113,86.672,86.62,17.3119]
[1646564006566,56.74685113,86.672,86.62,31.0319]
[1646564006742,6.31521381,86.671,86.62,31.0319]
[1646564007142,56.74685113,86.672,86.62,31.0319]
[1646564007341,6.31352384,86.671,86.62,31.0319]
[1646564007742,56.74685113,86.672,86.62,31.0319]
[1646564008343,6.31350831,86.671,86.62,31.0319]
[1646564008742,56.74685113,86.672,86.62,31.0319]
[1646564011048,56.74685113,86.672,86.62,13.72]
[1646564011248,121.61435136,86.671,86.62,13.72]
[1646564011548,3.13305233,86.667,86.61,17.3914]
[1646564011748,118.43305233,86.667,86.61,17.3914]
[1646564011948,118.43305233,86.665,86.61,17.3914]
[1646564012147,121.61435136,86.664,86.61,17.3914]
[1646564012347,6.31435136,86.663,86.61,17.3914]
[1646564014650,3.13305233,86.665,86.61,17.3914]
[1646564015251,118.43305233,86.665,86.61,17.3914]
[1646564015648,121.61435136,86.664,86.61,17.3914]
[1646564015848,6.31435136,86.663,86.61,17.3914]
[1646564016450,115.3,86.662,86.6,13.72]
[1646564016649,115.3,86.66,86.6,13.72]
[1646564016851,115.3,86.656,86.6,13.72]
[1646564017349,115.3,86.654,86.6,13.72]
[1646564017752,6.31435136,86.653,86.6,13.72]
[1646564018449,50.29110867,86.657,86.6,13.72]
[1646564020653,50.29110867,86.657,86.6,31.0395]
[1646564020854,50.29110867,86.657,86.601,5.771]
[1646564027181,27.80665233,86.67,86.602,0.61613096]
[1646564027382,6.31424095,86.669,86.604,0.61613096]
[1646564027682,6.31424095,86.669,86.605,5.771]
[1646564027884,6.31424095,86.669,86.601,5.771]
[1646564028082,46.91624963,86.668,86.61,17.3175]
[1646564028282,46.91624963,86.668,86.612,30.72325551]
[1646564028484,46.91624963,86.668,86.613,5.771]
[1646564031684,46.91624963,86.668,86.62,17.3153]
[1646564032087,46.91624963,86.668,86.621,5.769]
[1646564032486,46.91624963,86.668,86.613,5.769]
[1646564033287,46.91624963,86.668,86.612,48.06895551]
[1646564034189,6.31363801,86.667,86.613,5.771]
[1646564035492,6.31363801,86.667,86.612,17.3457]
[1646564038599,6.31363801,86.667,86.613,5.771]
[1646564038998,9.44669034,86.667,86.613,5.771]
[1646564039604,6.31363801,86.667,86.613,5.771]
[1646564041002,6.31363801,86.667,86.614,2.83613526]
[1646564041204,46.91624963,86.668,86.614,2.83613526]
[1646564041404,46.91624963,86.668,86.615,0.49319886]
[1646564041607,46.91624963,86.668,86.614,2.83613526]
[1646564041803,46.91624963,86.668,86.616,2.83613526]
[1646564042002,46.91624963,86.668,86.62,31.0353]
[1646564042203,46.91624963,86.668,86.62,13.72]
[1646564042804,115.3,86.666,86.62,13.72]
[1646564043003,115.3,86.666,86.613,5.771]
[1646564043204,115.3,86.664,86.613,5.771]
[1646564043408,115.3,86.662,86.613,5.771]
[1646564043606,6.31358235,86.661,86.6,13.72]
[1646564043805,115.3,86.66,86.6,13.72]
[1646564044008,115.3,86.658,86.6,13.72]
[1646564044207,6.31358235,86.657,86.6,13.72]
[1646564044507,115.3,86.654,86.6,13.72]
[1646564045108,58.36145681,86.655,86.6,13.72]
[1646564045309,6.31444619,86.654,86.6,13.72]
[1646564045710,6.31466709,86.653,86.592,23.4894]
[1646564045912,6.31466709,86.654,86.592,23.4894]
[1646564046310,121.61466709,86.654,86.592,23.4894]
[1646564046508,121.61466709,86.654,86.588,2.83613526]
[1646564046711,6.31466709,86.653,86.588,2.83613526]
[1646564048211,6.31466709,86.652,86.588,2.83613526]
[1646564048414,121.61466709,86.654,86.588,2.83613526]
[1646564048611,121.61466709,86.654,86.59,17.3212]
[1646564048912,6.31466709,86.653,86.59,17.3212]
[1646564049117,6.31466709,86.654,86.59,17.3212]
[1646564050019,115.3,86.653,86.59,17.3212]
[1646564050218,115.3,86.651,86.59,17.3212]
[1646564050418,115.3,86.649,86.59,17.3212]
[1646564050618,115.3,86.647,86.59,17.3212]
[1646564051022,23.3859,86.654,86.59,17.3212]
[1646564051219,6.31468391,86.653,86.59,17.3212]
[1646564051821,6.31468391,86.653,86.591,2.83613526]
[1646564052021,6.31468391,86.653,86.6,17.3176]
[1646564052221,3.13305233,86.675,86.61,13.72]
[1646564052422,3.13305233,86.677,86.61,21.95]
[1646564052622,3.13305233,86.678,86.61,21.95]
[1646564052822,3.13305233,86.678,86.611,2.83613526]
[1646564053024,49.9158702,86.677,86.612,40.68570226]
[1646564053222,56.22897174,86.677,86.612,40.68570226]
[1646564053424,6.31310154,86.676,86.613,2.83613526]
[1646564055339,1.57495387,86.657,86.613,2.83613526]
[1646564055543,1.57495387,86.658,86.613,2.83613526]
[1646564055740,1.57495387,86.659,86.613,2.83613526]
[1646564056246,1.57495387,86.658,86.613,2.83613526]
[1646564057040,1.57495387,86.658,86.62,17.3151]
[1646564057041,60.03872666,86.657,86.62,17.3151]
[1646564057241,60.03872666,86.657,86.62,31.0351]
[1646564057541,1.57495387,86.659,86.62,54.88135942]
[1646564057743,1.57495387,86.667,86.621,2.83613526]
[1646564057941,1.57495387,86.674,86.621,2.83613526]
[1646564058143,1.57495387,86.678,86.622,24.49747603]
[1646564058342,3.13305233,86.703,86.622,24.49747603]
[1646564058343,1.57495387,86.682,86.622,24.49747603]
[1646564058543,1.57495387,86.682,86.623,8.98302748]
[1646564058746,1.57495387,86.686,86.623,2.83613526]
[1646564058946,1.57495387,86.689,86.624,27.33361129]
[1646564059145,1.57495387,86.692,86.63,17.3075]
[1646564059345,59.24565641,86.7,86.63,17.3075]
[1646564059346,1.57495387,86.693,86.64,13.72]
[1646564059545,1.57495387,86.696,86.641,52.73076831]
[1646564060044,1.57495387,86.696,86.642,2.83613526]
[1646564060746,1.57495387,86.697,86.642,2.83613526]
[1646564061351,1.57495387,86.691,86.64,30.8556]
[1646564061748,1.57495387,86.69,86.64,30.8556]
[1646564062649,1.57495387,86.689,86.64,30.8556]
[1646564064552,115.3,86.688,86.64,13.72]
[1646564064754,1.57495387,86.685,86.624,2.83613526]
[1646564064953,1.57495387,86.682,86.624,2.83613526]
[1646564065350,55.779877,86.681,86.625,62.80062437]
[1646564066051,55.779877,86.681,86.625,87.2981004]
[1646564066464,55.779877,86.681,86.626,2.83613526]
[1646564066652,55.779877,86.681,86.63,13.72]
[1646564067051,55.779877,86.681,86.631,2.83613526]
[1646564067251,1.57495387,86.688,86.631,2.83613526]
[1646564067452,1.57495387,86.693,86.631,27.33361129]
[1646564067654,1.57495387,86.697,86.632,24.49747603]
[1646564067854,1.57495387,86.698,86.632,27.33361129]
[1646564068053,1.57495387,86.699,86.633,2.83613526]
[1646564068254,63.85758692,86.698,86.633,2.83613526]
[1646564068853,63.85758692,86.698,86.64,17.3109]
[1646564069057,65.43254079,86.698,86.64,13.72]
[1646564069353,1.57495387,86.697,86.641,2.83613526]
[1646564069753,65.43254079,86.698,86.641,2.83613526]
[1646564071856,63.85758692,86.698,86.641,2.83613526]
[1646564075158,1.57495387,86.702,86.65,17.309]
[1646564075357,1.57495387,86.705,86.65,31.029]
[1646564075558,1.57495387,86.704,86.651,2.83613526]
[1646564075959,1.57495387,86.705,86.651,2.83613526]
[1646564076158,61.78544637,86.704,86.651,2.83613526]
[1646564076758,63.36040024,86.704,86.651,2.83613526]
[1646564078062,1.57495387,86.702,86.651,2.83613526]
[1646564078462,1.57495387,86.701,86.651,2.83613526]
[1646564078664,1.57495387,86.702,86.651,2.83613526]
[1646564079162,63.36040024,86.704,86.633,2.83613526]
[1646564079363,1.57495387,86.693,86.617,24.49747603]
[1646564079569,1.57495387,86.679,86.6,13.72]
[1646564079763,1.57495387,86.675,86.6,31.1192]
[1646564079964,185.93464874,86.674,86.6,31.1192]
[1646564080164,1.57495387,86.668,86.6,31.1192]
[1646564080564,1.57495387,86.665,86.6,31.1192]
[1646564080765,1.57495387,86.665,86.601,30.95683912]
[1646564080964,1.57495387,86.667,86.601,55.45431515]
[1646564081168,1.57495387,86.665,86.601,55.45431515]
[1646564081591,1.57495387,86.663,86.601,55.45431515]
[1646564081766,1.57495387,86.662,86.601,55.45431515]
[1646564081967,55.56219034,86.661,86.601,55.45431515]
[1646564082567,57.13714421,86.661,86.601,55.45431515]
[1646564082767,55.56219034,86.661,86.601,55.45431515]
[1646564083167,57.13714421,86.661,86.601,55.45431515]
[1646564083367,57.13714421,86.661,86.601,30.95683912]
[1646564083769,55.56219034,86.661,86.601,30.95683912]
[1646564084174,1.57495387,86.66,86.601,30.95683912]
[1646564084373,1.57495387,86.659,86.6,31.1192]
[1646564084973,1.57495387,86.658,86.6,31.1192]
[1646564085174,1.57495387,86.659,86.6,31.1192]
[1646564085774,1.57495387,86.66,86.6,31.1192]
[1646564085973,116.87495387,86.66,86.6,13.72]
[1646564086178,116.87495387,86.66,86.58,13.72]
[1646564086378,1.57495387,86.653,86.57,13.72]
[1646564086579,1.57495387,86.643,86.561,24.49747603]
[1646564086878,1.57495387,86.638,86.561,24.49747603]
[1646564087078,1.57495387,86.63,86.532,24.49747603]
[1646564087280,1.57495387,86.63,86.531,2.83613526]
[1646564087476,115.3,86.628,86.53,36.2542]
[1646564087675,115.3,86.628,86.531,27.33361129]
[1646564087877,115.3,86.626,86.531,27.33361129]
[1646564088080,115.3,86.626,86.532,56.25992536]
[1646564088478,115.3,86.626,86.533,27.33361129]
[1646564088680,115.3,86.622,86.533,27.33361129]
[1646564088881,69.61,86.619,86.534,24.49747603]
[1646564089103,115.3,86.616,86.53,17.5375]
[1646564089303,115.3,86.614,86.53,17.5375]
[1646564089506,115.3,86.612,86.53,17.5375]
[1646564089699,115.3,86.61,86.53,17.5375]
[1646564089903,115.3,86.608,86.531,50.22782393]
[1646564090103,115.3,86.606,86.531,50.22782393]
[1646564090301,115.3,86.604,86.531,50.22782393]
[1646564091201,115.3,86.608,86.531,50.22782393]
[1646564091701,115.3,86.606,86.531,50.22782393]
[1646564092505,115.3,86.604,86.531,50.22782393]
[1646564092703,115.3,86.602,86.531,50.22782393]
[1646564093805,5.775,86.608,86.54,17.3329]
[1646564094005,51.82144034,86.609,86.54,17.3329]
[1646564095706,115.3,86.608,86.53,17.5375]
[1646564095905,115.3,86.606,86.53,17.5375]
[1646564096107,115.3,86.604,86.52,31.0572]
[1646564096305,115.3,86.602,86.52,31.0572]
[1646564096506,115.3,86.6,86.52,31.0572]
[1646564096706,115.3,86.598,86.52,31.0572]
[1646564096907,115.3,86.594,86.52,31.0572]
[1646564097106,115.3,86.592,86.52,31.0572]
[1646564098107,115.3,86.591,86.52,31.0572]
[1646564099310,115.3,86.594,86.52,31.0572]
[1646564100112,115.3,86.594,86.52,17.3372]
[1646564100311,115.3,86.592,86.52,17.3372]
[1646564100509,115.3,86.59,86.52,17.3372]
[1646564101009,115.3,86.588,86.52,17.3372]
[1646564101209,115.3,86.586,86.52,17.3372]
[1646564101410,115.3,86.584,86.52,17.3372]
[1646564102412,115.3,86.593,86.52,17.3372]
[1646564102615,115.3,86.591,86.52,17.3372]
[1646564102815,115.3,86.589,86.52,17.3372]
[1646564103012,115.3,86.587,86.509,3.5792933]
[1646564103212,115.3,86.585,86.509,3.5792933]
[1646564103413,115.3,86.583,86.509,3.5792933]
[1646564103613,115.3,86.581,86.509,3.5792933]
[1646564104013,115.3,86.579,86.509,3.5792933]
[1646564104213,115.3,86.577,86.509,3.5792933]
[1646564104413,115.3,86.575,86.509,3.5792933]
[1646564104615,115.3,86.573,86.509,3.5792933]
[1646564105215,115.3,86.571,86.509,3.5792933]
[1646564105418,115.3,86.569,86.509,3.5792933]
[1646564105615,115.3,86.567,86.509,3.5792933]
[1646564105815,115.3,86.565,86.509,3.5792933]
[1646564106219,5.777,86.578,86.509,3.5792933]
[1646564106417,5.777,86.578,86.51,13.72]
[1646564106622,2.62257436,86.599,86.51,36.67399248]
[1646564106819,1.57495387,86.637,86.511,0.70796354]
[1646564107017,47.8745,86.647,86.513,0.70796354]
[1646564107217,48.61491917,86.646,86.522,115.3]
[1646564107417,48.61491917,86.646,86.52,171.51]
[1646564107418,48.61491917,86.646,86.551,27.85545814]
[1646564107617,48.61491917,86.646,86.56,13.72]
[1646564108020,48.61491917,86.646,86.561,46.95105074]
[1646564108219,48.61491917,86.646,86.561,82.72267421]
[1646564108418,115.3,86.644,86.561,49.787186]
[1646564108620,115.3,86.642,86.562,2.83613526]
[1646564108818,115.3,86.64,86.56,30.6352]
[1646564109020,69.61,86.635,86.54,13.72]
[1646564109219,145.1588,86.634,86.53,13.72]
[1646564109421,1.57495387,86.626,86.52,31.0732]
[1646564109622,115.3,86.616,86.52,31.0732]
[1646564109819,115.3,86.614,86.52,31.0732]
[1646564110019,115.3,86.612,86.52,31.0732]
[1646564110218,1.57495387,86.608,86.52,31.0732]
[1646564110424,115.3,86.612,86.52,17.3532]
[1646564110425,1.57495387,86.611,86.52,17.3532]
[1646564110624,1.57495387,86.61,86.51,117.25214319]
[1646564110820,115.3,86.608,86.51,93.43044319]
[1646564111019,115.3,86.606,86.513,2.83613526]
[1646564111220,115.3,86.604,86.52,17.3372]
[1646564111428,115.3,86.602,86.52,17.3372]
[1646564111621,5.776,86.601,86.52,17.3372]
[1646564112024,22.5906,86.6,86.52,17.3372]
[1646564112222,115.3,86.598,86.52,17.3372]
[1646564112422,5.776,86.597,86.52,17.3372]
[1646564113226,5.776,86.599,86.52,17.3372]
[1646564113624,22.5906,86.6,86.521,2.83613526]
[1646564113824,22.5906,86.6,86.53,17.3352]
[1646564114224,115.3,86.599,86.531,2.83613526]
[1646564114423,115.3,86.597,86.52,30.9856]
[1646564114624,115.3,86.595,86.52,30.9856]
[1646564114824,115.3,86.593,86.52,30.9856]
[1646564115446,115.3,86.593,86.52,33.82173526]
[1646564115643,5.776,86.599,86.52,33.82173526]
[1646564115850,1.57495387,86.598,86.52,33.82173526]
[1646564116046,22.5906,86.6,86.52,40.97173526]
[1646564116644,22.5906,86.6,86.52,67.13950967]
[1646564116845,46.90572249,86.603,86.52,84.47670967]
[1646564117246,46.90572249,86.603,86.52,101.0546361]
[1646564117846,5.776,86.614,86.52,101.0546361]
[1646564118046,140.88995387,86.627,86.52,101.0546361]
[1646564118246,115.3,86.625,86.52,101.0546361]
[1646564118848,47.50234438,86.614,86.52,101.0546361]
[1646564121151,47.50234438,86.614,86.52,93.9046361]
[1646564126857,71.29794438,86.614,86.52,93.9046361]
[1646564127058,115.3,86.613,86.52,118.96706181]
[1646564127458,115.3,86.613,86.52,93.9046361]
[1646564129262,71.29794438,86.614,86.52,93.9046361]
[1646564130864,71.29794438,86.614,86.521,25.06242571]
[1646564131066,71.29794438,86.614,86.54,17.3293]
[1646564131269,71.29794438,86.614,86.55,13.72]
[1646564131764,47.50234438,86.614,86.55,13.72]
[1646564131964,47.50234438,86.614,86.56,17.3225]
[1646564132265,47.50234438,86.614,86.571,0.65432809]
[1646564132464,47.50234438,86.614,86.568,48.8002709]
[1646564132465,47.50234438,86.614,86.58,13.72]
[1646564132668,47.50234438,86.614,86.581,0.65432809]
[1646564132865,47.50234438,86.614,86.58,13.72]
[1646564133266,56.89234438,86.614,86.552,2.83613526]
[1646564133465,121.074,86.613,86.552,2.83613526]
[1646564133667,5.774,86.613,86.53,13.72]
[1646564133870,48.5606,86.612,86.53,13.72]
[1646564134066,5.775,86.611,86.53,13.72]
[1646564134566,115.3,86.61,86.53,31.0547]
[1646564134766,40.0,86.607,86.496,2.83613526]
[1646564134967,17.3441,86.59,86.496,2.83613526]
[1646564135165,17.3441,86.59,86.46,3.12221979]
[1646564135166,1.57495387,86.587,86.46,3.12221979]
[1646564135365,1.57495387,86.57,86.447,24.2458]
[1646564135567,116.87495387,86.568,86.447,24.2458]
[1646564135866,52.9345,86.569,86.447,24.2458]
[1646564135867,1.57495387,86.557,86.447,24.2458]
[1646564136067,1.57495387,86.552,86.442,16.9182]
[1646564136266,1.57495387,86.547,86.443,56.96046138]
[1646564136470,115.3,86.545,86.443,56.96046138]
[1646564136666,115.3,86.543,86.443,56.96046138]
[1646564136868,116.87495387,86.541,86.443,56.96046138]
[1646564137066,115.3,86.539,86.45,17.3514]
[1646564137267,116.87495387,86.537,86.45,17.3514]
[1646564137467,116.87495387,86.535,86.45,17.3514]
[1646564137667,115.3,86.533,86.45,17.3514]
[1646564137866,115.3,86.531,86.45,17.3514]